fUSD/lending_fUSD_20240216
["ID","MTS","AMOUNT","RATE_DAILY","PERIOD"]
[314229257,1708104641874,-1253.31,0.000409,4]
[314229258,1708104641884,-1253.31,0.000409,4]
[314229259,1708104641893,-1253.31,0.000409,4]
[314229260,1708104641902,-1253.31,0.000409,4]
[314229261,1708104641911,-1253.31,0.000409,4]
[314229262,1708104641920,-1253.31,0.000409,4]
[314229263,1708104641930,-310.0,0.00040963,30]
[314229264,1708104641939,-172.0,0.00041,5]
[314229265,1708104641948,-1000.0,0.00041095,2]
[314229266,1708104641957,-1000.0,0.000411,2]
[314229267,1708104641966,-3000.0,0.000411,2]
[314229268,1708104641974,-215.49,0.000411,2]
[314229269,1708104641983,-825.37,0.00041395,2]
[314229270,1708104641992,-181.66,0.00041455,2]
[314229271,1708104642002,-172.0,0.000415,6]
[314229272,1708104642011,-198.07,0.00041605,2]
[314229273,1708104642020,-7405.858601,0.00041671,4]
[314229274,1708104642029,-643.54,0.00041682,2]
[314229275,1708104642039,-2631.0,0.000417,87]
[314229276,1708104642048,-169.57,0.00041781,2]
[314229277,1708104642057,-151.51,0.00041843,2]
[314229278,1708104642066,-965.23195016,0.00042,7]
[314229279,1708104642076,-172.0,0.00042,7]
[314229280,1708104642085,-184.14444376,0.00042,2]
[314229281,1708104642095,-184.14444376,0.00042,2]
[314229282,1708104642104,-184.14444376,0.00042,2]
[314229283,1708104642113,-184.14444376,0.00042,2]
[314229284,1708104642122,-184.14444376,0.00042,2]
[314229285,1708104642131,-184.14444376,0.00042,2]
[314229286,1708104642140,-184.14444376,0.00042,2]
[314229287,1708104642149,-184.14444376,0.00042,2]
[314229288,1708104642159,-184.14444376,0.00042,2]
[314229289,1708104642168,-184.14444376,0.00042,2]
[314229290,1708104642177,-184.14444376,0.00042,2]
[314229291,1708104642186,-184.14444376,0.00042,2]
[314229292,1708104642195,-184.14444376,0.00042,2]
[314229293,1708104642204,-184.14444376,0.00042,2]
[314229294,1708104642213,-184.14444376,0.00042,2]
[314229295,1708104642221,-184.14444376,0.00042,2]
[314229296,1708104642230,-184.14444376,0.00042,2]
[314229297,1708104642239,-184.14444376,0.00042,2]
[314229298,1708104642397,-184.14444376,0.00042,2]
[314229299,1708104642443,-184.14444376,0.00042,2]
[314229300,1708104642453,-184.14444376,0.00042,2]
[314229301,1708104642462,-184.14444376,0.00042,2]
[314229302,1708104642471,-184.14444376,0.00042,2]
[314229303,1708104642480,-184.14444376,0.00042,2]
[314229304,1708104642490,-184.14444376,0.00042,2]
[314229305,1708104642499,-184.14444376,0.00042,2]
[314229306,1708104642509,-4000.0,0.00042,2]
[314229307,1708104642518,-180.0,0.00042013,2]
[314229308,1708104642527,-549.72,0.00042092,15]
[314229309,1708104642536,-668.50898973,0.0004213,10]
[314229310,1708104642545,-362.11772306,0.00042154,5]
[314229311,1708104642559,-280.72096564,0.00042154,7]
[314229312,1708104642568,-4183.69919649,0.00042154,8]
[314229313,1708104642578,-1882.66463842,0.00042154,8]
[314229314,1708104642588,-224.29525553,0.0004217,7]
[314229315,1708104642597,-152.02770212,0.00042186,7]
[314229316,1708104642606,-210.0,0.00042191,5]
[314229317,1708104642616,-329.73,0.00042205,2]
[314229318,1708104642626,-380.23490953,0.00042237,7]
[314229319,1708104642635,-4417.48,0.00042264,2]
[314229320,1708104642645,-168.40249853,0.000423,16]
[314229321,1708104642654,-2858.41102513,0.0004239,5]
[314229322,1708104642663,-152.84202411,0.0004239,15]
[314229323,1708104642672,-2619.67596576,0.000424,16]
[314229324,1708104642681,-1000.0,0.00042465,3]
[314229325,1708104642690,-85508.3766057,0.0004247,9]
[314229326,1708104642700,-58000.0,0.0004249,5]
[314229327,1708104642709,-85508.3766057,0.00042496,9]
[314229328,1708104642718,-58000.0,0.00042499,5]
[314229329,1708104642727,-172.0,0.000425,8]
[314229330,1708104642737,-58000.0,0.00042507,5]
[314229331,1708104642746,-85508.3766057,0.00042515,9]
[314229332,1708104642757,-58000.0,0.00042516,5]
[314229333,1708104642766,-58000.0,0.00042525,5]
[314229334,1708104642775,-1615.19404675,0.000426,2]
[314229335,1708104642784,-1000.0,0.000427,2]
[314229336,1708104642794,-1000.0,0.00042778,2]
[314229337,1708104642803,-355.84824712,0.000428,2]
[314229338,1708104642812,-153.5,0.000429,4]
[314229339,1708104642822,-153.5,0.000429,4]
[314229340,1708104642833,-153.5,0.000429,4]
[314229341,1708104642842,-153.5,0.000429,4]
[314229342,1708104642853,-1253.31,0.000429,4]
[314229343,1708104642862,-1253.31,0.000429,4]
[314229344,1708104642871,-1253.31,0.000429,4]
[314229345,1708104642880,-1253.31,0.000429,4]
[314229346,1708104642889,-1253.31,0.000429,4]
[314229347,1708104642898,-1253.31,0.000429,4]
[314229348,1708104642907,-1253.31,0.000429,4]
[314229349,1708104642916,-1253.31,0.000429,4]
[314229350,1708104642925,-1253.31,0.000429,4]
[314229351,1708104642934,-1253.31,0.000429,4]
[314229352,1708104642943,-1253.31,0.000429,4]
[314229353,1708104642952,-1253.31,0.000429,4]
[314229354,1708104642961,-1253.31,0.000429,4]
[314229355,1708104642970,-1253.31,0.000429,4]
[314229357,1708104642979,-1253.31,0.000429,4]
[314229358,1708104642990,-1253.31,0.000429,4]
[314229360,1708104642999,-1253.31,0.000429,4]
[314229361,1708104643008,-1253.31,0.000429,4]
[314229362,1708104643018,-1253.31,0.000429,4]
[314229363,1708104643027,-1253.31,0.000429,4]
[314229364,1708104643036,-255.0,0.000429,2]
[314229365,1708104643046,-172.0,0.00043,9]
[314229366,1708104643054,-453.0,0.00043,7]
[314229367,1708104643063,-195.0,0.00043,90]
[314229368,1708104643072,-7405.858601,0.00043023,5]
[314229369,1708104643081,-2619.67596567,0.00043094,17]
[314229370,1708104643091,-643.54,0.00043326,2]
[314229371,1708104643100,-150.000006,0.00043351,30]
[314229372,1708104643109,-150.000002,0.00043351,30]
[314229373,1708104643118,-172.0,0.000435,10]
[314229374,1708104643127,-10003.48,0.000435,2]
[314229375,1708104643136,-804.0,0.00043561,2]
[314229376,1708104643145,-151.51,0.00043587,2]
[314229377,1708104643154,-825.37,0.00043659,2]
[314229378,1708104643163,-4417.48,0.00043671,2]
[314229379,1708104643172,-329.73,0.00043677,2]
[314229380,1708104643181,-668.50898973,0.00043711,11]
[314229381,1708104643190,-2619.67596567,0.00043788,18]
[314229382,1708104643199,-1000.0,0.00043835,3]
[314229383,1708104643208,-2858.41102513,0.00043969,5]
[314229384,1708104643217,-172.0,0.00044,11]
[314229385,1708104643226,-1000.0,0.00044195,2]
[314229386,1708104643235,-168.4024985,0.00044234,19]
[314229387,1708104643244,-7405.858601,0.00044374,6]
[314229388,1708104643253,-2619.67596567,0.00044483,19]
[314229389,1708104643262,-85508.3766057,0.00044519,10]
[314229390,1708104643271,-355.84824712,0.00044525,2]
[314229391,1708104643280,-6749.3932391,0.00044539,2]
[314229392,1708104643290,-3000.0,0.0004454,23]
[314229393,1708104643299,-400.0,0.00044795,2]
[314229394,1708104643309,-195.0,0.00044877,90]
[314229395,1708104643318,-200.0,0.000449,25]
[314229396,1708104643328,-2895.2,0.00044931,105]
[314229397,1708104643337,-643.54,0.0004497,2]
[314229398,1708104643347,-20550.36647524,0.00045,10]
[314229399,1708104643356,-1000.0,0.00045,120]
[314229400,1708104643364,-404.90396778,0.00045,4]
[314229401,1708104643374,-2104.44703046,0.00045,4]
[314229403,1708104643384,-503.6232727,0.00045,30]
[314229404,1708104643393,-1689.05523496,0.00045,14]
[314229405,1708104643402,-153.5,0.00045,5]
[314229406,1708104643411,-153.5,0.00045,5]
[314229407,1708104643420,-153.5,0.00045,5]
[314229408,1708104643429,-153.5,0.00045,5]
[314229409,1708104643439,-1253.31,0.00045,5]
[314229410,1708104643447,-1253.31,0.00045,5]
[314229411,1708104643457,-1253.31,0.00045,5]
[314229412,1708104643467,-1253.31,0.00045,5]
[314229413,1708104643476,-1253.31,0.00045,5]
[314229414,1708104643485,-1253.31,0.00045,5]
[314229415,1708104643494,-1253.31,0.00045,5]
[314229416,1708104643503,-1253.31,0.00045,5]
[314229417,1708104643512,-1253.31,0.00045,5]
[314229418,1708104643521,-1253.31,0.00045,5]
[314229419,1708104643532,-1253.31,0.00045,5]
[314229420,1708104643560,-1253.31,0.00045,5]
[314229421,1708104643569,-1253.31,0.00045,5]
[314229422,1708104643578,-1253.31,0.00045,5]
[314229423,1708104643588,-1253.31,0.00045,5]
[314229424,1708104643598,-1253.31,0.00045,5]
[314229425,1708104643607,-1253.31,0.00045,5]
[314229426,1708104643617,-1253.31,0.00045,5]
[314229427,1708104643626,-1253.31,0.00045,5]
[314229428,1708104643635,-1253.31,0.00045,5]
[314229429,1708104643644,-304.62,0.00045,2]
[314229430,1708104643654,-530.09448258,0.00045145,2]
[314229431,1708104643663,-329.73,0.00045149,2]
[314229432,1708104643672,-2619.67596567,0.00045177,20]
[314229433,1708104643682,-1000.0,0.00045205,3]
[314229434,1708104643691,-169.57,0.00045205,2]
[314229435,1708104643700,-1338.81995726,0.00045225,2]
[314229436,1708104643710,-668.50898973,0.00045293,12]
[314229437,1708104643719,-151.51,0.0004533,2]
[314229438,1708104643729,-500.0,0.00045416,2]
[314229439,1708104643738,-1200.0,0.00045479,2]
[314229440,1708104643747,-1000.0,0.000455,2]
[314229441,1708104643758,-163.0815204,0.00045504,2]
[314229442,1708104643767,-734.28759145,0.00045514,4]
[314229443,1708104643776,-155.23296146,0.00045514,4]
[314229444,1708104643785,-775.53574364,0.00045514,4]
[314229445,1708104643795,-2858.41102513,0.00045548,5]
[314229446,1708104643805,-191.22421806,0.00045583,2]
[314229447,1708104643814,-460.02564019,0.00045591,2]
[314229448,1708104643823,-85508.3766057,0.00045594,10]
[314229449,1708104643832,-198.07,0.00045596,2]
[314229450,1708104643843,-900.0,0.00045604,4]
[314229451,1708104643852,-900.0,0.00045604,4]
[314229452,1708104643861,-900.0,0.00045604,4]
[314229453,1708104643870,-900.0,0.00045604,4]
[314229454,1708104643879,-900.0,0.00045604,4]
[314229455,1708104643888,-900.0,0.00045604,4]
[314229456,1708104643897,-900.0,0.00045604,4]
[314229457,1708104643906,-900.0,0.00045604,4]
[314229458,1708104643915,-900.0,0.00045604,4]
[314229459,1708104643924,-900.0,0.00045604,4]
[314229460,1708104643933,-900.0,0.00045604,4]
[314229461,1708104643942,-900.0,0.00045604,4]
[314229462,1708104643952,-900.0,0.00045604,4]
[314229463,1708104643961,-900.0,0.00045604,4]
[314229464,1708104643971,-900.0,0.00045604,4]
[314229465,1708104643980,-900.0,0.00045604,4]
[314229466,1708104643990,-900.0,0.00045604,4]
[314229467,1708104643999,-900.0,0.00045604,4]
[314229468,1708104644008,-900.0,0.00045604,4]
[314229469,1708104644017,-900.0,0.00045604,4]
[314229470,1708104644026,-900.0,0.00045604,4]
[314229471,1708104644036,-900.0,0.00045604,4]
[314229472,1708104644045,-900.0,0.00045604,4]
[314229473,1708104644054,-900.0,0.00045604,4]
[314229474,1708104644063,-900.0,0.00045604,4]
[314229475,1708104644072,-900.0,0.00045604,4]
[314229476,1708104644081,-900.0,0.00045604,4]
[314229477,1708104644091,-900.0,0.00045604,4]
[314229478,1708104644100,-900.0,0.00045604,4]
[314229479,1708104644110,-900.0,0.00045604,4]
[314229480,1708104644119,-900.0,0.00045604,4]
[314229481,1708104644128,-900.0,0.00045604,4]
[314229482,1708104644137,-900.0,0.00045604,4]
[314229483,1708104644146,-900.0,0.00045604,4]
[314229484,1708104644155,-900.0,0.00045604,4]
[314229485,1708104644164,-900.0,0.00045604,4]
[314229486,1708104644173,-900.0,0.00045604,4]
[314229487,1708104644183,-900.0,0.00045604,4]
[314229488,1708104644192,-900.0,0.00045604,4]
[314229489,1708104644201,-900.0,0.00045604,4]
[314229490,1708104644211,-900.0,0.00045604,4]
[314229491,1708104644220,-900.0,0.00045604,4]
[314229492,1708104644230,-900.0,0.00045604,4]
[314229493,1708104644239,-900.0,0.00045604,4]
[314229494,1708104644248,-900.0,0.00045604,4]
[314229495,1708104644257,-900.0,0.00045604,4]
[314229496,1708104644267,-900.0,0.00045604,4]
[314229497,1708104644277,-900.0,0.00045604,4]
[314229498,1708104644286,-900.0,0.00045604,4]
[314229499,1708104644295,-900.0,0.00045604,4]
[314229500,1708104644304,-900.0,0.00045604,4]
[314229501,1708104644313,-900.0,0.00045604,4]
[314229502,1708104644322,-900.0,0.00045604,4]
[314229503,1708104644332,-900.0,0.00045604,4]
[314229504,1708104644342,-900.0,0.00045604,4]
[314229505,1708104644351,-900.0,0.00045604,4]
[314229506,1708104644360,-900.0,0.00045604,4]
[314229507,1708104644369,-900.0,0.00045604,4]
[314229508,1708104644378,-900.0,0.00045604,4]
[314229509,1708104644387,-900.0,0.00045604,4]
[314229510,1708104644397,-900.0,0.00045604,4]
[314229511,1708104644406,-900.0,0.00045604,4]
[314229512,1708104644415,-900.0,0.00045604,4]
[314229513,1708104644425,-900.0,0.00045604,4]
[314229514,1708104644434,-900.0,0.00045604,4]
[314229515,1708104644444,-900.0,0.00045604,4]
[314229516,1708104644453,-900.0,0.00045604,4]
[314229517,1708104644462,-900.0,0.00045604,4]
[314229518,1708104644471,-900.0,0.00045604,4]
[314229519,1708104644480,-573.0,0.00045604,4]
[314229520,1708104644489,-7405.858601,0.00045726,7]
[314229521,1708104644498,-549.72,0.00045828,15]
[314229522,1708104644507,-330.26,0.0004587,2]
[314229523,1708104644516,-2619.67596567,0.00045871,21]
[314229524,1708104644526,-500.0,0.00045921,4]
[314229525,1708104644535,-825.37,0.00045923,2]
[314229526,1708104644544,-167.0,0.00045927,30]
[314229527,1708104644554,-500.0,0.0004593,4]
[314229528,1708104644563,-500.0,0.00045938,4]
[314229529,1708104644572,-500.0,0.00045947,4]
[314229530,1708104644582,-500.0,0.00045956,4]
[314229531,1708104644592,-500.0,0.00045965,4]
[314229532,1708104644603,-500.0,0.00045974,4]
[314229533,1708104644612,-500.0,0.00045982,4]
[314229534,1708104644622,-500.0,0.00045991,4]
[314229535,1708104644631,-5000.0,0.00046,18]
[314229536,1708104644641,-500.0,0.00046,4]
[314229537,1708104644650,-168.4024985,0.00046168,21]
[314229538,1708104644659,-355.84824712,0.0004625,2]
[314229539,1708104644669,-1900.0,0.000463,2]
[314229540,1708104644678,-293.0,0.0004641,5]
[314229541,1708104644687,-167.0,0.00046475,30]
[314229542,1708104644696,-2619.67596567,0.00046565,22]
[314229543,1708104644705,-311.81,0.00046567,120]
[314229544,1708104644714,-922.06452414,0.00046575,3]
[314229545,1708104644725,-205.0,0.00046588,21]
[314229546,1708104644734,-1000.0,0.000466,2]
[314229547,1708104644743,-1419.0,0.000466,2]
[314229548,1708104644755,-2250.0,0.000466,2]
[314229549,1708104644765,-643.54,0.00046614,2]
[314229550,1708104644774,-668.50898973,0.00046874,12]
[314229551,1708104644783,-5000.0,0.00047,19]
[314229552,1708104644793,-155.0,0.00047,2]
[314229553,1708104644802,-177.38,0.00047,2]
[314229554,1708104644812,-153.5,0.00047,5]
[314229555,1708104644822,-153.5,0.00047,5]
[314229556,1708104644832,-153.5,0.00047,5]
[314229557,1708104644842,-153.5,0.00047,5]
[314229558,1708104644852,-1253.31,0.00047,5]
[314229559,1708104644861,-1253.31,0.00047,5]
[314229560,1708104644870,-1253.31,0.00047,5]
[314229561,1708104644879,-1253.31,0.00047,5]
[314229562,1708104644889,-1253.31,0.00047,5]
[314229563,1708104644898,-1253.31,0.00047,5]
[314229564,1708104644907,-1253.31,0.00047,5]
[314229565,1708104644917,-1253.31,0.00047,5]
[314229566,1708104644927,-1253.31,0.00047,5]
[314229567,1708104644936,-1253.31,0.00047,5]
[314229568,1708104644946,-1253.31,0.00047,5]
[314229569,1708104644955,-1253.31,0.00047,5]
[314229570,1708104644964,-1253.31,0.00047,5]
[314229571,1708104644974,-1253.31,0.00047,5]
[314229572,1708104644983,-1253.31,0.00047,5]
[314229573,1708104645141,-1253.31,0.00047,5]
[314229574,1708104645151,-1253.31,0.00047,5]
[314229575,1708104645161,-1253.31,0.00047,5]
[314229576,1708104645170,-1253.31,0.00047,5]
[314229577,1708104645179,-1253.31,0.00047,5]
[314229578,1708104645188,-155.0,0.00047023,30]
[314229579,1708104645201,-3000.0,0.0004704,35]
[314229580,1708104645210,-151.51,0.00047073,2]
[314229581,1708104645219,-7405.858601,0.00047077,8]
[314229582,1708104645228,-2858.41102513,0.00047127,5]
[314229583,1708104645237,-1082.37365988,0.00047177,2]
[314229584,1708104645246,-247.0,0.0004719,2]
[314229585,1708104645256,-152.0,0.00047207,4]
[314229586,1708104645265,-1479.33289724,0.00047256,2]
[314229587,1708104645274,-1038.12144644,0.00047256,2]
[314229588,1708104645283,-168.50653802,0.00047256,2]
[314229589,1708104645293,-4375.89473813,0.00047256,2]
[314229590,1708104645303,-2619.67596567,0.00047259,23]
[314229591,1708104645312,-199.29277722,0.00047267,2]
[314229592,1708104645321,-291.46680855,0.00047267,2]
[314229593,1708104645331,-11730.34602199,0.00047267,2]
[314229594,1708104645341,-85508.3766057,0.00047268,11]
[314229595,1708104645350,-2355.2931984,0.00047277,30]
[314229596,1708104645359,-1000.0,0.00047277,30]
[314229597,1708104645368,-2221.6212,0.00047278,2]
[314229598,1708104645378,-100000.0,0.00047278,2]
[314229599,1708104645387,-150.0,0.00047356,2]
[314229600,1708104645396,-150.0,0.00047356,2]
[314229601,1708104645406,-150.0,0.00047356,2]
[314229602,1708104645415,-1000.0,0.00047373,30]
[314229603,1708104645424,-249.537,0.00047407,2]
[314229604,1708104645434,-212.162,0.00047407,2]
[314229605,1708104645443,-243.0,0.0004749,2]
[314229606,1708104645453,-1012.214,0.00047506,2]
[314229607,1708104645462,-429.0,0.00047506,2]
[314229608,1708104645476,-858.0,0.00047506,2]
[314229609,1708104645486,-261.071,0.00047506,2]
[314229610,1708104645495,-150.0,0.00047506,2]
[314229611,1708104645505,-1138.0,0.00047506,2]
[314229612,1708104645515,-321.0,0.00047506,2]
[314229613,1708104645524,-2871.0,0.00047506,2]
[314229614,1708104645535,-343.0,0.00047506,2]
[314229615,1708104645545,-454.0,0.00047506,2]
[314229616,1708104645554,-4137.899,0.00047506,2]
[314229617,1708104645564,-2289.0,0.00047506,2]
[314229618,1708104645574,-5598.0,0.00047506,2]
[314229619,1708104645584,-2835.0,0.00047506,2]
[314229620,1708104645595,-8164.0,0.00047506,2]
[314229621,1708104645606,-1969.691,0.00047506,2]
[314229622,1708104645615,-42574.0,0.00047506,2]
[314229623,1708104645625,-7417.0,0.00047506,2]
[314229624,1708104645635,-2927.0,0.00047506,2]
[314229625,1708104645645,-1369.0,0.00047506,2]
[314229626,1708104645655,-19846.0,0.00047506,2]
[314229627,1708104645665,-455.579,0.00047506,2]
[314229628,1708104645675,-880.0,0.00047506,2]
[314229629,1708104645685,-660.667,0.00047506,2]
[314229630,1708104645696,-953.0,0.00047506,2]
[314229631,1708104645706,-1037.0,0.00047506,2]
[314229632,1708104645715,-150.0,0.00047506,2]
[314229633,1708104645727,-1000.0,0.00047531,2]
[314229634,1708104645737,-177.38,0.00047548,2]
[314229635,1708104645748,-155.0,0.00047571,30]
[314229636,1708104645757,-150.0,0.00047578,60]
[314229637,1708104645767,-500.0,0.00047698,2]
[314229638,1708104645777,-500.0,0.00047698,2]
[314229639,1708104645786,-500.0,0.00047698,2]
[314229640,1708104645796,-500.0,0.00047698,2]
[314229641,1708104645805,-400.0,0.00047698,2]
[314229642,1708104645814,-500.0,0.00047698,2]
[314229643,1708104645826,-500.0,0.00047698,2]
[314229644,1708104645835,-500.0,0.00047698,2]
[314229645,1708104645847,-500.0,0.00047698,2]
[314229646,1708104645856,-500.0,0.00047698,2]
[314229647,1708104645866,-500.0,0.00047698,2]
[314229648,1708104645876,-500.0,0.00047698,2]
[314229649,1708104645885,-500.0,0.00047698,2]
[314229650,1708104645895,-500.0,0.00047698,2]
[314229651,1708104645905,-500.0,0.00047698,2]
[314229652,1708104645919,-500.0,0.00047698,2]
[314229653,1708104645929,-500.0,0.00047698,2]
[314229654,1708104645939,-500.0,0.00047698,2]
[314229655,1708104645949,-800.0,0.00047699,25]
[314229656,1708104645959,-152.356,0.0004782,30]
[314229657,1708104645969,-163.021737,0.00047898,37]
[314229658,1708104645979,-259.0,0.000479,23]
[314229659,1708104645989,-2619.67596567,0.00047953,24]
[314229660,1708104645998,-355.84824712,0.00047975,2]
[314229662,1708104646008,-151.021737,0.00047998,38]
[314229663,1708104646018,-5000.0,0.00048,20]
[314229664,1708104646028,-5000.0,0.00048,20]
[314229665,1708104646038,-1000.0,0.00048014,30]
[314229666,1708104646048,-1000.0,0.00048014,30]
[314229667,1708104646058,-150.0,0.00048018,7]
[314229668,1708104646068,-1000.0,0.00048035,30]
[314229669,1708104646077,-1000.0,0.00048051,30]
[314229670,1708104646088,-1000.0,0.00048051,30]
[314229671,1708104646099,-1000.0,0.00048085,30]
[314229672,1708104646108,-177.38,0.00048096,2]
[314229673,1708104646119,-151.021737,0.00048098,37]
[314229674,1708104646129,-168.4024985,0.00048102,24]
[314229675,1708104646140,-150.0,0.00048107,7]
[314229676,1708104646151,-155.0,0.00048119,30]
[314229677,1708104646162,-150.0,0.00048122,7]
[314229678,1708104646172,-150.0,0.00048147,7]
[314229679,1708104646183,-232.0,0.00048154,30]
[314229680,1708104646193,-3158.4,0.00048161,117]
[314229681,1708104646203,-825.37,0.00048187,2]
[314229682,1708104646212,-151.021737,0.00048198,38]
[314229683,1708104646222,-1000.0,0.000482,2]
[314229684,1708104646232,-1649.56130443,0.00048211,7]
[314229685,1708104646241,-150.0,0.00048232,7]
[314229686,1708104646251,-150.0,0.00048255,7]
[314229687,1708104646261,-150.0,0.00048269,7]
[314229688,1708104646271,-150.0,0.0004827,7]
[314229689,1708104646282,-151.021737,0.00048298,37]
[314229690,1708104646292,-500.0,0.00048315,7]
[314229691,1708104646302,-500.0,0.00048315,7]
[314229692,1708104646312,-500.0,0.00048315,7]
[314229693,1708104646322,-500.0,0.00048315,7]
[314229694,1708104646332,-500.0,0.00048315,7]
[314229695,1708104646343,-500.0,0.00048315,7]
[314229696,1708104646353,-500.0,0.00048315,7]
[314229697,1708104646363,-500.0,0.00048315,7]
[314229699,1708104646373,-500.0,0.00048315,7]
[314229701,1708104646384,-500.0,0.00048315,7]
[314229704,1708104646394,-500.0,0.00048315,7]
[314229706,1708104646405,-500.0,0.00048315,7]
[314229708,1708104646415,-500.0,0.00048315,7]
[314229710,1708104646425,-500.0,0.00048315,7]
[314229712,1708104646435,-500.0,0.00048315,7]
[314229714,1708104646445,-500.0,0.00048315,7]
[314229716,1708104646456,-500.0,0.00048315,7]
[314229718,1708104646466,-500.0,0.00048315,7]
[314229720,1708104646476,-500.0,0.00048315,7]
[314229722,1708104646485,-500.0,0.00048315,7]
[314229724,1708104646496,-500.0,0.00048315,7]
[314229726,1708104646506,-150.0,0.00048322,7]
[314229728,1708104646516,-161.06540872,0.0004837,2]
[314229730,1708104646526,-150.0,0.00048372,7]
[314229732,1708104646535,-150.0,0.00048391,7]
[314229734,1708104646546,-151.021737,0.00048398,37]
[314229736,1708104646556,-150.0,0.00048414,7]
[314229737,1708104646566,-5000.0,0.00048416,7]
[314229739,1708104646576,-150.0,0.0004842,7]
[314229741,1708104646587,-224.95228755,0.00048424,7]
[314229743,1708104646600,-7405.858601,0.00048429,10]
[314229745,1708104646609,-150.0,0.00048431,7]
[314229747,1708104646619,-150.0,0.00048442,7]
[314229749,1708104646629,-150.0,0.00048448,7]
[314229751,1708104646638,-668.50898973,0.00048455,13]
[314229753,1708104646648,-150.0,0.00048456,7]
[314229755,1708104646658,-322.92814137,0.00048459,7]
[314229757,1708104646668,-150.0,0.00048471,7]
[314229759,1708104646678,-151.021737,0.00048498,39]
[314229761,1708104646688,-690.29943736,0.00048545,30]
[314229763,1708104646698,-1290.5925453,0.00048545,30]
[314229765,1708104646708,-150.0,0.00048549,7]
[314229767,1708104646718,-150.0,0.00048561,7]
[314229769,1708104646731,-150.0,0.00048578,60]
[314229771,1708104646742,-300.0,0.00048592,7]
[314229773,1708104646754,-151.021737,0.00048598,38]
[314229775,1708104646763,-1500.0,0.00048599,7]
[314229778,1708104646774,-1082.37365986,0.00048607,2]
[314229780,1708104646784,-163.14574646,0.00048617,7]
[314229782,1708104646794,-150.0,0.00048624,7]
[314229784,1708104646803,-150.0,0.00048637,7]
[314229786,1708104646814,-354.18,0.00048644,2]
[314229788,1708104646825,-150.0,0.00048646,7]
[314229790,1708104646835,-1479.33289724,0.00048646,2]
[314229792,1708104646847,-1038.12144643,0.00048646,2]
[314229794,1708104646856,-168.50653802,0.00048646,2]
[314229796,1708104646866,-4375.89473811,0.00048646,2]
[314229798,1708104646875,-2619.67596567,0.00048648,24]
[314229800,1708104646885,-1500.0,0.0004865,7]
[314229802,1708104646894,-232.0,0.0004865,30]
[314229804,1708104646904,-300.0,0.00048657,7]
[314229806,1708104646914,-150.0,0.00048661,7]
[314229808,1708104646923,-155.0,0.00048667,30]
[314229810,1708104646933,-150.0,0.00048669,7]
[314229811,1708104646942,-150.0,0.00048689,7]
[314229812,1708104646951,-150.0,0.00048694,7]
[314229813,1708104646961,-151.021737,0.00048698,39]
[314229814,1708104646971,-600.0,0.000487,7]
[314229815,1708104646981,-150.0,0.00048701,7]
[314229816,1708104646991,-2858.41102513,0.00048706,5]
[314229817,1708104647000,-150.0,0.00048729,7]